[Event "Titled Tuesday Blitz November 15 Late 2022"]
[White "Liu, Kelsey"]
[Black "Arbunic Castro, Giovanna"]
[WhiteFideId "30944481"]
[BlackFideId "3400549"]
[WhiteElo "2295"]
[BlackElo "1965"]
[Result "1-0"]
[Round "10"]
[TimeControl "180+1"]
[Date "2022.11.16"]
[WhiteClock "0:00:43"]
[BlackClock "0:00:03"]

1. e4 {[%clk 0:02:58]}  g6 {[%clk 0:02:58]} 2. d4 {[%clk 0:02:58]}  Bg7 {[%clk 0:02:57]} 3. Nf3 {[%clk 0:02:56]}  c5 {[%clk 0:02:57]} 4. c3 {[%clk 0:02:54]}  d5 {[%clk 0:02:53]} 5. e5 {[%clk 0:02:54]}  cxd4 {[%clk 0:02:52]} 6. cxd4 {[%clk 0:02:54]}  Nc6 {[%clk 0:02:51]} 7. Nc3 {[%clk 0:02:54]}  Nh6 {[%clk 0:02:49]} 8. Bb5 {[%clk 0:02:54]}  O-O {[%clk 0:02:38]} 9. O-O {[%clk 0:02:49]}  Bg4 {[%clk 0:02:36]} 10. Be3 {[%clk 0:02:47]}  Nf5 {[%clk 0:02:34]} 11. Be2 {[%clk 0:02:39]}  e6 {[%clk 0:02:09]} 12. Qd2 {[%clk 0:02:27]}  Qb6 {[%clk 0:02:07]} 13. Rfd1 {[%clk 0:02:21]}  f6 {[%clk 0:01:46]} 14. Na4 {[%clk 0:01:57]}  Qd8 {[%clk 0:01:34]} 15. Nc5 {[%clk 0:01:57]}  Qe7 {[%clk 0:01:22]} 16. h3 {[%clk 0:01:44]}  Bxf3 {[%clk 0:01:13]} 17. Bxf3 {[%clk 0:01:45]}  Kh8 {[%clk 0:00:55]} 18. exf6 {[%clk 0:01:08]}  Qxf6 {[%clk 0:00:40]} 19. Bg5 {[%clk 0:01:01]}  Qxd4 {[%clk 0:00:36]} 20. Nxe6 {[%clk 0:01:00]}  Qxd2 {[%clk 0:00:32]} 21. Rxd2 {[%clk 0:01:01]}  Rfe8 {[%clk 0:00:18]} 22. Nc7 {[%clk 0:01:00]}  Re5 {[%clk 0:00:14]} 23. Nxa8 {[%clk 0:01:00]}  Nfd4 {[%clk 0:00:14]} 24. Bf4 {[%clk 0:00:53]}  Rf5 {[%clk 0:00:12]} 25. Bg3 {[%clk 0:00:51]}  Rxf3 {[%clk 0:00:11]} 26. Rxd4 {[%clk 0:00:49]}  Rxg3 {[%clk 0:00:11]} 27. Rxd5 {[%clk 0:00:47]}  Bxb2 {[%clk 0:00:03]} 28. Rb1 {[%clk 0:00:43]} 1-0


[Site "https://www.chess.com"]

[Event "Titled Tuesday Blitz November 15 Late 2022"]
[White "Makridis, Dimitrios"]
[Black "Barria Zuniga, Daniel"]
[WhiteFideId "25864475"]
[BlackFideId "3400816"]
[WhiteElo "2272"]
[BlackElo "2414"]
[Result "1-0"]
[Round "10"]
[TimeControl "180+1"]
[Date "2022.11.15"]
[WhiteClock "0:00:15"]
[BlackClock "0:00:06"]

1. e4 {[%clk 0:03:00]}  c5 {[%clk 0:03:00]} 2. Nf3 {[%clk 0:02:59]}  Nc6 {[%clk 0:03:00]} 3. Bb5 {[%clk 0:02:58]}  a6 {[%clk 0:02:59]} 4. Bxc6 {[%clk 0:02:57]}  bxc6 {[%clk 0:03:00]} 5. O-O {[%clk 0:02:56]}  e6 {[%clk 0:02:58]} 6. c3 {[%clk 0:02:56]}  d5 {[%clk 0:02:49]} 7. Re1 {[%clk 0:02:51]}  Nf6 {[%clk 0:02:48]} 8. e5 {[%clk 0:02:49]}  Nd7 {[%clk 0:02:46]} 9. d3 {[%clk 0:02:50]}  a5 {[%clk 0:02:46]} 10. c4 {[%clk 0:02:49]}  Be7 {[%clk 0:02:30]} 11. Bf4 {[%clk 0:02:47]}  g5 {[%clk 0:02:29]} 12. Bg3 {[%clk 0:02:44]}  h5 {[%clk 0:02:25]} 13. h3 {[%clk 0:02:42]}  a4 {[%clk 0:02:12]} 14. Nc3 {[%clk 0:02:39]}  a3 {[%clk 0:02:10]} 15. b3 {[%clk 0:02:38]}  Nf8 {[%clk 0:01:27]} 16. Rc1 {[%clk 0:02:32]}  Ng6 {[%clk 0:01:26]} 17. cxd5 {[%clk 0:02:17]}  cxd5 {[%clk 0:01:25]} 18. Nb5 {[%clk 0:02:17]}  h4 {[%clk 0:01:17]} 19. Bh2 {[%clk 0:02:16]}  g4 {[%clk 0:01:16]} 20. hxg4 {[%clk 0:02:16]}  h3 {[%clk 0:01:17]} 21. Nd6+ {[%clk 0:02:10]}  Bxd6 {[%clk 0:01:15]} 22. exd6 {[%clk 0:02:11]}  hxg2 {[%clk 0:01:15]} 23. Rxc5 {[%clk 0:01:41]}  d4 {[%clk 0:00:55]} 24. Rc7 {[%clk 0:01:26]}  Rxh2 {[%clk 0:00:52]} 25. Nxh2 {[%clk 0:01:26]}  Qxd6 {[%clk 0:00:52]} 26. Rxf7 {[%clk 0:00:47]}  Kxf7 {[%clk 0:00:27]} 27. Qf3+ {[%clk 0:00:47]}  Nf4 {[%clk 0:00:19]} 28. Qxa8 {[%clk 0:00:48]}  Bd7 {[%clk 0:00:07]} 29. Nf3 {[%clk 0:00:46]}  Bc6 {[%clk 0:00:04]} 30. Qa7+ {[%clk 0:00:21]}  Kf6 {[%clk 0:00:04]} 31. Qxd4+ {[%clk 0:00:13]}  Qxd4 {[%clk 0:00:03]} 32. Nxd4 {[%clk 0:00:14]}  Nh3+ {[%clk 0:00:03]} 33. Kh2 {[%clk 0:00:14]}  g1=Q+ {[%clk 0:00:04]} 34. Rxg1 {[%clk 0:00:15]}  Nxg1 {[%clk 0:00:05]} 35. Kxg1 {[%clk 0:00:15]}  Be4 {[%clk 0:00:05]} 36. dxe4 {[%clk 0:00:15]}  Ke5 {[%clk 0:00:05]} 37. Nc2 {[%clk 0:00:15]}  Kxe4 {[%clk 0:00:06]} 38. Nxa3 {[%clk 0:00:15]} 1-0


[Site "https://www.chess.com"]

[Event "Titled Tuesday Blitz November 15 Late 2022"]
[White "Marcolino, Daniel Mattos"]
[Black "Young, Ryan"]
[WhiteFideId "2106841"]
[BlackFideId "2049945"]
[WhiteElo "2093"]
[BlackElo "2274"]
[Result "0-1"]
[Round "10"]
[TimeControl "180+1"]
[Date "2022.11.16"]
[WhiteClock "0:00:01"]
[BlackClock "0:00:16"]

1. e4 {[%clk 0:03:00]}  e5 {[%clk 0:03:00]} 2. Nf3 {[%clk 0:03:00]}  d5 {[%clk 0:03:01]} 3. Nxe5 {[%clk 0:02:39]}  Bd6 {[%clk 0:02:53]} 4. d4 {[%clk 0:02:35]}  dxe4 {[%clk 0:02:53]} 5. Bc4 {[%clk 0:02:19]}  Bxe5 {[%clk 0:02:51]} 6. dxe5 {[%clk 0:02:20]}  Qxd1+ {[%clk 0:02:50]} 7. Kxd1 {[%clk 0:02:21]}  Bg4+ {[%clk 0:02:44]} 8. Be2 {[%clk 0:02:10]}  Bf5 {[%clk 0:02:37]} 9. g4 {[%clk 0:01:59]}  Bg6 {[%clk 0:02:35]} 10. h4 {[%clk 0:01:52]}  h6 {[%clk 0:02:25]} 11. Nc3 {[%clk 0:01:49]}  Nc6 {[%clk 0:02:20]} 12. Bb5 {[%clk 0:01:49]}  O-O-O+ {[%clk 0:02:20]} 13. Ke2 {[%clk 0:01:49]}  Nxe5 {[%clk 0:02:20]} 14. Rg1 {[%clk 0:01:38]}  Ne7 {[%clk 0:02:17]} 15. Bf4 {[%clk 0:01:31]}  Nxg4 {[%clk 0:02:08]} 16. Rxg4 {[%clk 0:01:26]}  Bh5 {[%clk 0:02:08]} 17. Nxe4 {[%clk 0:01:05]}  Bxg4+ {[%clk 0:02:05]} 18. f3 {[%clk 0:01:05]}  Bf5 {[%clk 0:02:06]} 19. a4 {[%clk 0:00:54]}  Bxe4 {[%clk 0:02:03]} 20. fxe4 {[%clk 0:00:54]}  Ng6 {[%clk 0:01:57]} 21. Bg3 {[%clk 0:00:52]}  c6 {[%clk 0:01:56]} 22. Bc4 {[%clk 0:00:51]}  Rhf8 {[%clk 0:01:46]} 23. Rf1 {[%clk 0:00:44]}  Nh8 {[%clk 0:01:36]} 24. Be5 {[%clk 0:00:30]}  f6 {[%clk 0:00:57]} 25. Be6+ {[%clk 0:00:29]}  Rd7 {[%clk 0:00:58]} 26. Bxd7+ {[%clk 0:00:19]}  Kxd7 {[%clk 0:00:57]} 27. Bd4 {[%clk 0:00:19]}  Re8 {[%clk 0:00:57]} 28. Kf3 {[%clk 0:00:12]}  b6 {[%clk 0:00:54]} 29. a5 {[%clk 0:00:11]}  c5 {[%clk 0:00:53]} 30. Bc3 {[%clk 0:00:10]}  Kc6 {[%clk 0:00:52]} 31. axb6 {[%clk 0:00:10]}  axb6 {[%clk 0:00:51]} 32. Rg1 {[%clk 0:00:10]}  Re7 {[%clk 0:00:51]} 33. h5 {[%clk 0:00:09]}  Nf7 {[%clk 0:00:45]} 34. Kf4 {[%clk 0:00:07]}  Ng5 {[%clk 0:00:43]} 35. Re1 {[%clk 0:00:06]}  Re6 {[%clk 0:00:43]} 36. e5 {[%clk 0:00:06]}  fxe5+ {[%clk 0:00:41]} 37. Bxe5 {[%clk 0:00:06]}  Nf7 {[%clk 0:00:36]} 38. Re3 {[%clk 0:00:04]}  g6 {[%clk 0:00:20]} 39. hxg6 {[%clk 0:00:04]}  Rxg6 {[%clk 0:00:21]} 40. Bc3 {[%clk 0:00:04]}  Nd6 {[%clk 0:00:19]} 41. Kf3 {[%clk 0:00:02]}  Rg5 {[%clk 0:00:17]} 42. Re6 {[%clk 0:00:02]}  Rf5+ {[%clk 0:00:16]} 43. Kg4 {[%clk 0:00:01]}  h5+ {[%clk 0:00:16]} 44. Kg3 {[%clk 0:00:01]}  Rd5 {[%clk 0:00:17]} 45. Rh6 {[%clk 0:00:01]}  b5 {[%clk 0:00:16]} 0-1


[Site "https://www.chess.com"]

[Event "Titled Tuesday Blitz November 15 Late 2022"]
[White "Megalios, Konstantinos"]
[Black "Artemenko, Oleg"]
[WhiteFideId "4238044"]
[BlackFideId "14201798"]
[WhiteElo "2277"]
[BlackElo "2287"]
[Result "1-0"]
[Round "10"]
[TimeControl "180+1"]
[Date "2022.11.16"]
[WhiteClock "0:01:10"]
[BlackClock "0:01:56"]

1. e4 {[%clk 0:03:00]}  g5 {[%clk 0:02:56]} 2. d4 {[%clk 0:02:56]}  h6 {[%clk 0:02:55]} 3. h4 {[%clk 0:02:55]}  gxh4 {[%clk 0:02:49]} 4. Qh5 {[%clk 0:02:53]}  Nf6 {[%clk 0:02:48]} 5. Qxh4 {[%clk 0:02:53]}  Rg8 {[%clk 0:02:48]} 6. f3 {[%clk 0:02:23]}  c5 {[%clk 0:02:46]} 7. dxc5 {[%clk 0:02:18]}  Nc6 {[%clk 0:02:43]} 8. Nc3 {[%clk 0:02:17]}  d6 {[%clk 0:02:37]} 9. Be3 {[%clk 0:02:15]}  Be6 {[%clk 0:02:35]} 10. O-O-O {[%clk 0:02:14]}  Qa5 {[%clk 0:02:34]} 11. a3 {[%clk 0:01:58]}  dxc5 {[%clk 0:02:23]} 12. Nh3 {[%clk 0:01:52]}  Bxh3 {[%clk 0:02:20]} 13. Qxh3 {[%clk 0:01:51]}  e6 {[%clk 0:02:19]} 14. Bb5 {[%clk 0:01:36]}  Rc8 {[%clk 0:02:12]} 15. e5 {[%clk 0:01:31]}  Nd7 {[%clk 0:02:10]} 16. f4 {[%clk 0:01:31]}  a6 {[%clk 0:02:08]} 17. Be2 {[%clk 0:01:29]}  b5 {[%clk 0:02:05]} 18. Bh5 {[%clk 0:01:28]}  Nd8 {[%clk 0:02:04]} 19. Bxf7+ {[%clk 0:01:15]}  Ke7 {[%clk 0:01:56]} 20. Bxg8 {[%clk 0:01:10]} 1-0


[Site "https://www.chess.com"]

[Event "Titled Tuesday Blitz November 15 Late 2022"]
[White "Melikhov, Evgeny V."]
[Black "Kumala, Aleksander"]
[WhiteFideId "4122046"]
[BlackFideId "1141880"]
[WhiteElo "2169"]
[BlackElo "2269"]
[Result "1/2-1/2"]
[Round "10"]
[TimeControl "180+1"]
[Date "2022.11.16"]
[WhiteClock "0:02:09"]
[BlackClock "0:02:01"]

1. d4 {[%clk 0:03:00]}  Nf6 {[%clk 0:02:59]} 2. c4 {[%clk 0:03:00]}  e5 {[%clk 0:03:00]} 3. dxe5 {[%clk 0:02:59]}  Ng4 {[%clk 0:03:00]} 4. Bf4 {[%clk 0:02:59]}  Bb4+ {[%clk 0:03:00]} 5. Nd2 {[%clk 0:02:59]}  Nc6 {[%clk 0:03:00]} 6. Nf3 {[%clk 0:02:59]}  Qe7 {[%clk 0:03:01]} 7. e3 {[%clk 0:02:59]}  Ngxe5 {[%clk 0:03:01]} 8. Nxe5 {[%clk 0:03:00]}  Nxe5 {[%clk 0:03:01]} 9. Be2 {[%clk 0:03:00]}  d6 {[%clk 0:02:57]} 10. O-O {[%clk 0:02:59]}  a5 {[%clk 0:02:56]} 11. Nb1 {[%clk 0:02:58]}  a4 {[%clk 0:02:54]} 12. a3 {[%clk 0:02:55]}  Bc5 {[%clk 0:02:49]} 13. Nc3 {[%clk 0:02:54]}  Bd7 {[%clk 0:02:45]} 14. Nd5 {[%clk 0:02:46]}  Qd8 {[%clk 0:02:45]} 15. b4 {[%clk 0:02:33]}  axb3 {[%clk 0:02:44]} 16. Qxb3 {[%clk 0:02:32]}  Bc6 {[%clk 0:02:37]} 17. Qb2 {[%clk 0:02:24]}  O-O {[%clk 0:02:19]} 18. Bxe5 {[%clk 0:02:19]}  dxe5 {[%clk 0:02:20]} 19. Qxe5 {[%clk 0:02:19]}  Rxa3 {[%clk 0:02:07]} 20. Rxa3 {[%clk 0:02:17]}  Bxa3 {[%clk 0:02:06]} 21. Qxc7 {[%clk 0:02:13]}  Bxd5 {[%clk 0:02:04]} 22. Qxd8 {[%clk 0:02:11]}  Rxd8 {[%clk 0:02:05]} 23. cxd5 {[%clk 0:02:11]}  Rxd5 {[%clk 0:02:06]} 24. Rd1 {[%clk 0:02:09]}  Rxd1+ {[%clk 0:02:05]} 25. Bxd1 {[%clk 0:02:09]}  Bc5 {[%clk 0:02:01]} 1/2-1/2


[Site "https://www.chess.com"]

[Event "Titled Tuesday Blitz November 15 Late 2022"]
[White "Mgeladze, Tamaz"]
[Black "Poliakova, Varvara"]
[WhiteFideId "13601202"]
[BlackFideId "13518313"]
[WhiteElo "2288"]
[BlackElo "2099"]
[Result "1-0"]
[Round "10"]
[TimeControl "180+1"]
[Date "2022.11.16"]
[WhiteClock "0:00:32"]
[BlackClock "0:00:10"]

1. c4 {[%clk 0:03:00]}  e5 {[%clk 0:02:59]} 2. g3 {[%clk 0:03:00]}  d6 {[%clk 0:02:58]} 3. Bg2 {[%clk 0:03:00]}  g6 {[%clk 0:02:58]} 4. Nc3 {[%clk 0:03:01]}  f5 {[%clk 0:02:58]} 5. d3 {[%clk 0:03:01]}  Bg7 {[%clk 0:02:58]} 6. Nf3 {[%clk 0:03:01]}  Nf6 {[%clk 0:02:58]} 7. O-O {[%clk 0:03:01]}  O-O {[%clk 0:02:59]} 8. Rb1 {[%clk 0:03:02]}  a5 {[%clk 0:02:57]} 9. a3 {[%clk 0:03:02]}  Nc6 {[%clk 0:02:55]} 10. b4 {[%clk 0:03:01]}  axb4 {[%clk 0:02:55]} 11. axb4 {[%clk 0:03:02]}  h6 {[%clk 0:02:53]} 12. b5 {[%clk 0:03:02]}  Ne7 {[%clk 0:02:53]} 13. Bb2 {[%clk 0:03:03]}  g5 {[%clk 0:02:52]} 14. Ra1 {[%clk 0:03:03]}  Rb8 {[%clk 0:02:46]} 15. Qb3 {[%clk 0:03:03]}  Be6 {[%clk 0:02:43]} 16. Ra7 {[%clk 0:03:03]}  b6 {[%clk 0:02:40]} 17. Rfa1 {[%clk 0:03:00]}  f4 {[%clk 0:02:37]} 18. Nd2 {[%clk 0:03:00]}  fxg3 {[%clk 0:02:34]} 19. hxg3 {[%clk 0:02:59]}  Nf5 {[%clk 0:02:31]} 20. Nce4 {[%clk 0:02:57]}  Ng4 {[%clk 0:02:21]} 21. Bf3 {[%clk 0:02:52]}  h5 {[%clk 0:02:14]} 22. Bxg4 {[%clk 0:02:44]}  hxg4 {[%clk 0:02:15]} 23. Kg2 {[%clk 0:02:44]}  Nh4+ {[%clk 0:01:48]} 24. gxh4 {[%clk 0:02:44]}  gxh4 {[%clk 0:01:49]} 25. Rg1 {[%clk 0:02:31]}  h3+ {[%clk 0:01:36]} 26. Kf1 {[%clk 0:02:31]}  h2 {[%clk 0:01:35]} 27. Rh1 {[%clk 0:02:31]}  Qh4 {[%clk 0:01:33]} 28. Rxc7 {[%clk 0:02:24]}  Qh3+ {[%clk 0:01:31]} 29. Ke1 {[%clk 0:02:21]}  Qg2 {[%clk 0:01:30]} 30. Rxh2 {[%clk 0:02:14]}  Qxh2 {[%clk 0:01:30]} 31. Nf1 {[%clk 0:02:03]}  Qh1 {[%clk 0:01:21]} 32. Qb4 {[%clk 0:01:56]}  Rbd8 {[%clk 0:00:56]} 33. Nxd6 {[%clk 0:01:53]}  Qg2 {[%clk 0:00:51]} 34. Ne4 {[%clk 0:01:48]}  Rf7 {[%clk 0:00:47]} 35. Rxf7 {[%clk 0:01:46]}  Bxf7 {[%clk 0:00:48]} 36. Qe7 {[%clk 0:01:32]}  Rf8 {[%clk 0:00:45]} 37. Qg5 {[%clk 0:01:29]}  Kh7 {[%clk 0:00:32]} 38. Bxe5 {[%clk 0:01:23]}  Bxe5 {[%clk 0:00:29]} 39. Qxe5 {[%clk 0:01:24]}  Bg6 {[%clk 0:00:27]} 40. Qe7+ {[%clk 0:01:11]}  Rf7 {[%clk 0:00:21]} 41. Ng5+ {[%clk 0:01:10]}  Kg7 {[%clk 0:00:21]} 42. Nxf7 {[%clk 0:01:10]}  Bxf7 {[%clk 0:00:22]} 43. Qe5+ {[%clk 0:01:08]}  Kg8 {[%clk 0:00:21]} 44. Qg3 {[%clk 0:01:05]}  Qa8 {[%clk 0:00:20]} 45. Qxg4+ {[%clk 0:01:05]}  Kf8 {[%clk 0:00:20]} 46. Qd4 {[%clk 0:00:57]}  Qa5+ {[%clk 0:00:20]} 47. Nd2 {[%clk 0:00:58]}  Qa2 {[%clk 0:00:19]} 48. f3 {[%clk 0:00:51]}  Qc2 {[%clk 0:00:19]} 49. Qh8+ {[%clk 0:00:49]}  Ke7 {[%clk 0:00:19]} 50. Qe5+ {[%clk 0:00:48]}  Be6 {[%clk 0:00:19]} 51. Qg5+ {[%clk 0:00:46]}  Kd7 {[%clk 0:00:19]} 52. Kf2 {[%clk 0:00:46]}  Qc1 {[%clk 0:00:17]} 53. Ne4 {[%clk 0:00:45]}  Qh1 {[%clk 0:00:16]} 54. Qg7+ {[%clk 0:00:43]}  Kd8 {[%clk 0:00:14]} 55. Qg2 {[%clk 0:00:40]}  Qh4+ {[%clk 0:00:14]} 56. Qg3 {[%clk 0:00:40]}  Qh1 {[%clk 0:00:14]} 57. Qd6+ {[%clk 0:00:40]}  Bd7 {[%clk 0:00:14]} 58. Qxb6+ {[%clk 0:00:40]}  Ke8 {[%clk 0:00:13]} 59. Qg6+ {[%clk 0:00:40]}  Kd8 {[%clk 0:00:13]} 60. Qg5+ {[%clk 0:00:37]}  Kc8 {[%clk 0:00:12]} 61. Qg8+ {[%clk 0:00:35]}  Kc7 {[%clk 0:00:13]} 62. Qg3+ {[%clk 0:00:35]}  Kd8 {[%clk 0:00:12]} 63. b6 {[%clk 0:00:35]}  Qb1 {[%clk 0:00:11]} 64. Qc7+ {[%clk 0:00:33]}  Ke7 {[%clk 0:00:11]} 65. b7 {[%clk 0:00:33]}  Qh1 {[%clk 0:00:10]} 66. b8=Q {[%clk 0:00:32]} 1-0


[Site "https://www.chess.com"]

[Event "Titled Tuesday Blitz November 15 Late 2022"]
[White "Mickiewicz, Piotr"]
[Black "Toncheva, Nadya"]
[WhiteFideId "1114891"]
[BlackFideId "2924056"]
[WhiteElo "2246"]
[BlackElo "2101"]
[Result "1-0"]
[Round "10"]
[TimeControl "180+1"]
[Date "2022.11.16"]
[WhiteClock "0:00:11"]
[BlackClock "0:00:02"]

1. Nf3 {[%clk 0:02:51]}  c5 {[%clk 0:02:59]} 2. g3 {[%clk 0:02:51]}  Nc6 {[%clk 0:03:00]} 3. Bg2 {[%clk 0:02:51]}  g6 {[%clk 0:03:00]} 4. d3 {[%clk 0:02:51]}  Bg7 {[%clk 0:03:01]} 5. O-O {[%clk 0:02:43]}  e5 {[%clk 0:03:00]} 6. c3 {[%clk 0:02:41]}  Nge7 {[%clk 0:03:00]} 7. a3 {[%clk 0:02:38]}  O-O {[%clk 0:02:59]} 8. b4 {[%clk 0:02:36]}  cxb4 {[%clk 0:02:44]} 9. axb4 {[%clk 0:02:37]}  e4 {[%clk 0:02:31]} 10. dxe4 {[%clk 0:02:38]}  Nxb4 {[%clk 0:02:30]} 11. Qb3 {[%clk 0:02:29]}  Nbc6 {[%clk 0:02:29]} 12. Be3 {[%clk 0:02:23]}  d5 {[%clk 0:02:27]} 13. Rd1 {[%clk 0:02:17]}  Be6 {[%clk 0:01:51]} 14. Ng5 {[%clk 0:02:15]}  h6 {[%clk 0:01:16]} 15. Nxe6 {[%clk 0:02:13]}  fxe6 {[%clk 0:01:17]} 16. Qxb7 {[%clk 0:02:02]}  Rb8 {[%clk 0:01:12]} 17. Qa6 {[%clk 0:02:01]}  Qc7 {[%clk 0:00:59]} 18. Na3 {[%clk 0:01:30]}  dxe4 {[%clk 0:00:53]} 19. Bxe4 {[%clk 0:01:26]}  Nd5 {[%clk 0:00:46]} 20. Rxd5 {[%clk 0:01:17]}  exd5 {[%clk 0:00:43]} 21. Bxd5+ {[%clk 0:01:18]}  Kh7 {[%clk 0:00:43]} 22. Qxc6 {[%clk 0:01:16]}  Qe5 {[%clk 0:00:43]} 23. Bd4 {[%clk 0:01:06]}  Qxe2 {[%clk 0:00:42]} 24. Qd7 {[%clk 0:01:00]}  Rg8 {[%clk 0:00:19]} 25. Bxg8+ {[%clk 0:00:58]}  Rxg8 {[%clk 0:00:20]} 26. Nb5 {[%clk 0:00:58]}  Qb2 {[%clk 0:00:19]} 27. Re1 {[%clk 0:00:39]}  Kh8 {[%clk 0:00:17]} 28. Re7 {[%clk 0:00:38]}  Qb1+ {[%clk 0:00:09]} 29. Kg2 {[%clk 0:00:37]}  Qc2 {[%clk 0:00:07]} 30. Rxg7 {[%clk 0:00:15]}  Qe4+ {[%clk 0:00:06]} 31. Kf1 {[%clk 0:00:15]}  Qd3+ {[%clk 0:00:06]} 32. Ke1 {[%clk 0:00:15]}  Qb1+ {[%clk 0:00:06]} 33. Kd2 {[%clk 0:00:15]}  Qb2+ {[%clk 0:00:06]} 34. Ke3 {[%clk 0:00:14]}  Qc1+ {[%clk 0:00:07]} 35. Kd3 {[%clk 0:00:13]}  Qd1+ {[%clk 0:00:07]} 36. Kc4 {[%clk 0:00:13]}  Qe2+ {[%clk 0:00:06]} 37. Kc5 {[%clk 0:00:12]}  Qh5+ {[%clk 0:00:02]} 38. Kb4 {[%clk 0:00:11]} 1-0


[Site "https://www.chess.com"]

[Event "Titled Tuesday Blitz November 15 Late 2022"]
[White "Mr_Penings"]
[Black "Har-Zvi, Ronen"]
[BlackFideId "2801485"]
[WhiteElo "2687"]
[BlackElo "2523"]
[Result "0-1"]
[Round "10"]
[TimeControl "180+1"]
[Date "2022.11.15"]
[WhiteClock "0:00:02"]
[BlackClock "0:00:29"]

1. c4 {[%clk 0:02:59]}  c5 {[%clk 0:02:59]} 2. g3 {[%clk 0:02:59]}  Nc6 {[%clk 0:02:59]} 3. Bg2 {[%clk 0:03:00]}  g6 {[%clk 0:02:59]} 4. Nc3 {[%clk 0:03:00]}  Bg7 {[%clk 0:03:00]} 5. d3 {[%clk 0:03:01]}  e6 {[%clk 0:03:00]} 6. h4 {[%clk 0:03:01]}  h6 {[%clk 0:03:00]} 7. h5 {[%clk 0:03:01]}  g5 {[%clk 0:03:01]} 8. f4 {[%clk 0:03:02]}  gxf4 {[%clk 0:03:00]} 9. gxf4 {[%clk 0:03:02]}  Nge7 {[%clk 0:02:59]} 10. Nf3 {[%clk 0:03:00]}  Rg8 {[%clk 0:02:58]} 11. Rg1 {[%clk 0:02:56]}  Nf5 {[%clk 0:02:55]} 12. e3 {[%clk 0:02:30]}  Nh4 {[%clk 0:02:49]} 13. Nxh4 {[%clk 0:02:28]}  Qxh4+ {[%clk 0:02:48]} 14. Kf1 {[%clk 0:02:29]}  Bxc3 {[%clk 0:02:40]} 15. bxc3 {[%clk 0:02:28]}  b6 {[%clk 0:02:37]} 16. Rh1 {[%clk 0:02:03]}  Qf6 {[%clk 0:02:33]} 17. Bd2 {[%clk 0:01:48]}  Bb7 {[%clk 0:02:32]} 18. e4 {[%clk 0:01:49]}  O-O-O {[%clk 0:02:29]} 19. Qe1 {[%clk 0:01:26]}  Ne7 {[%clk 0:02:25]} 20. Qh4 {[%clk 0:01:19]}  Qg7 {[%clk 0:02:12]} 21. Rh2 {[%clk 0:01:12]}  f5 {[%clk 0:02:08]} 22. a4 {[%clk 0:01:08]}  fxe4 {[%clk 0:02:05]} 23. dxe4 {[%clk 0:01:07]}  d5 {[%clk 0:01:43]} 24. cxd5 {[%clk 0:01:02]}  exd5 {[%clk 0:01:41]} 25. e5 {[%clk 0:00:59]}  d4 {[%clk 0:01:39]} 26. Bxb7+ {[%clk 0:00:53]}  Kxb7 {[%clk 0:01:39]} 27. Qf2 {[%clk 0:00:44]}  dxc3 {[%clk 0:01:31]} 28. Bxc3 {[%clk 0:00:43]}  Nf5 {[%clk 0:01:31]} 29. Rh3 {[%clk 0:00:26]}  Ng3+ {[%clk 0:01:31]} 30. Ke1 {[%clk 0:00:26]}  Qg4 {[%clk 0:01:26]} 31. Qg2+ {[%clk 0:00:19]}  Kb8 {[%clk 0:01:13]} 32. a5 {[%clk 0:00:19]}  Rd3 {[%clk 0:01:00]} 33. Bd2 {[%clk 0:00:12]}  b5 {[%clk 0:00:56]} 34. a6 {[%clk 0:00:12]}  Qd7 {[%clk 0:00:51]} 35. Rb1 {[%clk 0:00:08]}  b4 {[%clk 0:00:48]} 36. Kd1 {[%clk 0:00:03]}  Rd8 {[%clk 0:00:46]} 37. Rb2 {[%clk 0:00:04]}  Ne4 {[%clk 0:00:43]} 38. Qxe4 {[%clk 0:00:04]}  Rxd2+ {[%clk 0:00:43]} 39. Kc1 {[%clk 0:00:03]}  Rd1+ {[%clk 0:00:30]} 40. Kc2 {[%clk 0:00:03]}  Qa4+ {[%clk 0:00:29]} 41. Rbb3 {[%clk 0:00:02]}  R8d2# {[%clk 0:00:29]} 0-1


[Site "https://www.chess.com"]

[Event "Titled Tuesday Blitz November 15 Late 2022"]
[White "Nugumanov, Bakhtiyar"]
[Black "Bilan, Danila"]
[WhiteFideId "13701797"]
[BlackFideId "24161918"]
[WhiteElo "2287"]
[BlackElo "2173"]
[Result "0-1"]
[Round "10"]
[TimeControl "180+1"]
[Date "2022.11.16"]
[WhiteClock "0:00:04"]
[BlackClock "0:00:08"]

1. e4 {[%clk 0:03:00]}  c6 {[%clk 0:03:00]} 2. d4 {[%clk 0:03:00]}  d5 {[%clk 0:03:00]} 3. Nc3 {[%clk 0:03:01]}  dxe4 {[%clk 0:02:59]} 4. Nxe4 {[%clk 0:03:01]}  Bf5 {[%clk 0:03:00]} 5. Ng3 {[%clk 0:03:01]}  Bg6 {[%clk 0:03:00]} 6. h4 {[%clk 0:03:02]}  h6 {[%clk 0:03:00]} 7. Nf3 {[%clk 0:03:03]}  Nd7 {[%clk 0:03:01]} 8. Bd3 {[%clk 0:03:04]}  Bxd3 {[%clk 0:03:00]} 9. Qxd3 {[%clk 0:03:04]}  Qc7 {[%clk 0:03:01]} 10. Bd2 {[%clk 0:02:55]}  e6 {[%clk 0:03:01]} 11. O-O-O {[%clk 0:02:48]}  Bd6 {[%clk 0:03:00]} 12. Ne4 {[%clk 0:02:44]}  Ngf6 {[%clk 0:03:01]} 13. Nxd6+ {[%clk 0:02:44]}  Qxd6 {[%clk 0:03:01]} 14. Kb1 {[%clk 0:02:40]}  Qd5 {[%clk 0:03:01]} 15. Rhe1 {[%clk 0:02:35]}  O-O-O {[%clk 0:02:54]} 16. c4 {[%clk 0:02:28]}  Qh5 {[%clk 0:02:29]} 17. Bf4 {[%clk 0:02:06]}  Qg4 {[%clk 0:02:15]} 18. Bg3 {[%clk 0:02:05]}  Nh5 {[%clk 0:02:02]} 19. Nh2 {[%clk 0:01:14]}  Qf5 {[%clk 0:01:32]} 20. Qxf5 {[%clk 0:01:13]}  exf5 {[%clk 0:01:33]} 21. Bd6 {[%clk 0:01:13]}  Rde8 {[%clk 0:01:19]} 22. Nf3 {[%clk 0:01:08]}  Nhf6 {[%clk 0:01:15]} 23. Ne5 {[%clk 0:01:04]}  Nxe5 {[%clk 0:00:39]} 24. Bxe5 {[%clk 0:01:05]}  Nh5 {[%clk 0:00:20]} 25. f3 {[%clk 0:00:30]}  f6 {[%clk 0:00:20]} 26. Bh2 {[%clk 0:00:28]}  g5 {[%clk 0:00:16]} 27. g4 {[%clk 0:00:23]}  Ng7 {[%clk 0:00:15]} 28. h5 {[%clk 0:00:18]}  Kd7 {[%clk 0:00:15]} 29. Kc2 {[%clk 0:00:17]}  f4 {[%clk 0:00:11]} 30. Bg1 {[%clk 0:00:16]}  f5 {[%clk 0:00:11]} 31. d5 {[%clk 0:00:14]}  Rxe1 {[%clk 0:00:10]} 32. Rxe1 {[%clk 0:00:15]}  cxd5 {[%clk 0:00:10]} 33. Bd4 {[%clk 0:00:12]}  Rg8 {[%clk 0:00:09]} 34. cxd5 {[%clk 0:00:12]}  fxg4 {[%clk 0:00:07]} 35. fxg4 {[%clk 0:00:12]}  b6 {[%clk 0:00:07]} 36. Kd3 {[%clk 0:00:11]}  Ne8 {[%clk 0:00:06]} 37. Re6 {[%clk 0:00:11]}  Rf8 {[%clk 0:00:03]} 38. Rxh6 {[%clk 0:00:10]}  f3 {[%clk 0:00:03]} 39. Rh7+ {[%clk 0:00:09]}  Kd6 {[%clk 0:00:03]} 40. Bf2 {[%clk 0:00:09]}  Kxd5 {[%clk 0:00:04]} 41. Rxa7 {[%clk 0:00:08]}  Nd6 {[%clk 0:00:04]} 42. h6 {[%clk 0:00:05]}  Ne4 {[%clk 0:00:03]} 43. Ke3 {[%clk 0:00:04]}  Nf6 {[%clk 0:00:02]} 44. Rb7 {[%clk 0:00:03]}  Nxg4+ {[%clk 0:00:02]} 45. Kd2 {[%clk 0:00:02]}  Nxf2 {[%clk 0:00:03]} 46. h7 {[%clk 0:00:03]}  Ne4+ {[%clk 0:00:04]} 47. Ke3 {[%clk 0:00:03]}  f2 {[%clk 0:00:04]} 48. Rf7 {[%clk 0:00:02]}  Rxf7 {[%clk 0:00:04]} 49. h8=Q {[%clk 0:00:02]}  f1=Q {[%clk 0:00:05]} 50. Qd8+ {[%clk 0:00:02]}  Kc6 {[%clk 0:00:06]} 51. Qe8+ {[%clk 0:00:03]}  Kb7 {[%clk 0:00:06]} 52. Qxe4+ {[%clk 0:00:03]}  Kb8 {[%clk 0:00:06]} 53. Qe8+ {[%clk 0:00:03]}  Kb7 {[%clk 0:00:06]} 54. Qe4+ {[%clk 0:00:04]}  Ka7 {[%clk 0:00:07]} 55. Qa4+ {[%clk 0:00:04]}  Qa6 {[%clk 0:00:07]} 56. Qe8 {[%clk 0:00:04]}  Rb7 {[%clk 0:00:07]} 57. Qd8 {[%clk 0:00:04]}  Qa5 {[%clk 0:00:07]} 58. Qd4 {[%clk 0:00:04]}  Qc5 {[%clk 0:00:08]} 59. Qxc5 {[%clk 0:00:04]}  bxc5 {[%clk 0:00:08]} 0-1


[Site "https://www.chess.com"]